Cogmind - Beta 12 X4 @@@ ROGUE MODE // 2022.10.29 @ 11:23:23 Player: cptwinky Result: Destroyed by Lightning with EMDS Performance ------------- Evolutions (6) 3000 Regions Visited (28) 5600 Robots Destroyed (473) 2365 Value Destroyed (17396) 17396 Prototype IDs (27) 540 Alien Tech Used (0) 0 Bonus (8872) 8872 TOTAL SCORE: 37773 Bonus ------- High Alert Combat Kills 3328 Follower Combat Kills 4300 Entered Garrisons 800 Network Hubs Disabled 400 Met Imprinter 300 Built Enhanced Grunts 300 A7 Reached Mainframe 300 Friendly Fire -856 Cogmind --------- Core Integrity 0/1150 Matter 300/300 Energy 98/100 System Corruption 41% Temperature Cool (0) Movement Core (50) Location -4/Hub_04(d) Parts ------- > --- POWER (2) -------- (None) > --- PROPULSION (6) --- (None) > --- UTILITY (9) ------ Propulsion Shielding > --- WEAPON (2) ------- (None) > --- INVENTORY (5) ---- Advanced Transmission Jammer EMDS Matter Neutralizer CR-A16's Behemoth Slayer Peak State ------------ > --- POWER ------------ Light Antimatter Reactor Light Antimatter Reactor > --- PROPULSION ------- Centrium Heavy Treads Centrium Heavy Treads Centrium Heavy Treads > --- UTILITY ---------- Advanced Power Amplifier Experimental Heat Sink Advanced Coolant Injector High-capacity Storage Unit Experimental Targeting Computer Experimental Targeting Computer Experimental Phase Shifter Layered Medium Armor Plating Centrium Medium Armor Plating > --- WEAPON ----------- Neutron Cannon Neutron Cannon > --- INVENTORY -------- Antimatter Reactor Advanced Energy Well Advanced Energy Well Advanced Transmission Jammer Improved System Restoration Module Hacking Drone Bay Long-range Proton Cannon Heavy Disruptor Cannon EMDS Matter Neutralizer Railgun Heavy Gauss Cannon Advanced Datajack CR-A16's Behemoth Slayer [Rating: 152] Favorites ----------- Power Neutrino Core Engine Heavy Ion Engine Power Core Neutrino Core Reactor Light Antimatter Reactor Propulsion Light Treads Treads Light Treads Leg Carbon-fiber Leg Wheel Armored Huge Wheel Hover Unit Improved Airjet Utility Huge Storage Unit Device Advanced Coolant Injector Storage Huge Storage Unit Processor Advanced Targeting Computer Hackware Authchip [Propulsion] Protection Hardened Heavy Armor Plating Weapon Improved Light Cannon Energy Gun Dispersion Rifle Energy Cannon Heavy Disruptor Cannon Ballistic Gun Coil Gun Ballistic Cannon Improved Light Cannon Launcher Rocket Launcher Impact Weapon Shock Maul Piercing Weapon Lance Special Melee Weapon Advanced Datajack Build | -11 -10 -10 -9 -9 -8 -8 -8 -8 -8 -8 -8 -7 -7 -7 -7 -6 -6 -6 -6 -5 -5 -5 -5 -4 -4 -4 -4 -4 ------- Run | Scr Mat Min Mat Sto Mat Gar Mat Gar Mat Gar Mat Fac Was Fac Gar Fac Low Low Zio Pro Fac Upp Upp Fac Ext Cet Arc Hub Slots Evolved 12 | . . . 2 . 2 . . . . . . 2 . . . 2 . . . . 2 . . 2 . . . . Power 1 | . . . . . . . . . . . . . . . . 1 . . . . . . . . . . . . Propulsion 4 | . . . 1 . 1 . . . . . . . . . . . . . . . 1 . . 1 . . . . Utility 7 | . . . 1 . 1 . . . . . . 2 . . . 1 . . . . 1 . . 1 . . . . Weapon . | . . . . . . . . . . . . . . . . . . . . . . . . . . . . . Parts Attached 467 | 3 24 5 24 20 2 4 19 22 13 13 19 6 13 2 16 13 27 18 8 28 77 11 1 12 27 9 7 24 Power 30 | . 3 1 2 . . . . 1 1 2 1 . 1 . 1 4 2 1 . 1 2 2 . . 2 1 . 2 Engine 15 | . 3 1 2 . . . . . 1 1 1 . 1 . 1 1 1 1 . . . 1 . . . . . . Core 9 | . . . . . . . . 1 . 1 . . . . . 2 1 . . . 1 1 . . 1 1 . . Reactor 6 | . . . . . . . . . . . . . . . . 1 . . . 1 1 . . . 1 . . 2 Propulsion 99 | 2 7 . 7 7 1 . 7 5 4 2 8 1 . 1 . 1 2 2 . 7 21 3 1 1 6 2 . 1 Treads 73 | 2 7 . 7 7 1 . 7 4 4 2 7 . . . . 1 1 2 . 3 7 3 1 1 3 2 . 1 Leg 10 | . . . . . . . . 1 . . . . . . . . 1 . . 4 2 . . . 2 . . . Wheel 15 | . . . . . . . . . . . 1 1 . 1 . . . . . . 11 . . . 1 . . . Hover 1 | . . . . . . . . . . . . . . . . . . . . . 1 . . . . . . . Flight . | . . . . . . . . . . . . . . . . . . . . . . . . . . . . . Utility 157 | . 4 1 3 2 1 2 2 5 5 3 4 3 7 1 3 2 6 9 2 7 40 3 . 8 11 6 5 12 Device 82 | . 1 . . . 1 1 . 1 1 1 1 3 2 . 1 1 2 6 2 . 30 2 . 4 9 3 5 5 Storage 10 | . 2 . . 1 . . . . . . . . . 1 . . . . . 1 1 . . 2 1 . . 1 Processor 13 | . 1 . 2 . . . . . 2 . . . . . . 1 . . . 1 3 . . . . 1 . 2 Hackware 4 | . . . . . . . . . . . . . . . . . . . . 1 2 . . 1 . . . . Protection 48 | . . 1 1 1 . 1 2 4 2 2 3 . 5 . 2 . 4 3 . 4 4 1 . 1 1 2 . 4 Artifact . | . . . . . . . . . . . . . . . . . . . . . . . . . . . . . Weapon 181 | 1 10 3 12 11 . 2 10 11 3 6 6 2 5 . 12 6 17 6 6 13 14 3 . 3 8 . 2 9 Energy Gun 17 | 1 2 . . 1 . . . . . . . . . . . . 8 . . 3 2 . . . . . . . Energy Cannon 21 | . 1 . . 2 . . . . . . 1 . . . . . . . . . 4 1 . 1 4 . 1 6 Ballistic Gun 1 | . . . . . . . . . . . . . . . . . . . . . . . . . . . 1 . Ballistic Cannon 82 | . 7 2 7 6 . 1 6 7 2 4 4 1 3 . 6 3 5 3 4 5 1 . . 1 1 . . 3 Launcher 25 | . . 1 2 . . . 4 2 . 2 . 1 . . 2 1 3 2 . 3 2 . . . . . . . Special Weapon . | . . . . . . . . . . . . . . . . . . . . . . . . . . . . . Impact Weapon 9 | . . . 1 1 . 1 . 1 1 . 1 . 1 . . . 1 1 . . . . . . . . . . Slashing Weapon . | . . . . . . . . . . . . . . . . . . . . . . . . . . . . . Piercing Weapon 19 | . . . . . . . . . . . . . 1 . 4 2 . . . 1 5 2 . 1 3 . . . Special Melee Weapon 7 | . . . 2 1 . . . 1 . . . . . . . . . . 2 1 . . . . . . . . Unidentified Prototypes 13 | . . . 1 4 . . . . . . . . . . . . . . 1 . 1 . . 1 . 2 . 3 Corrupted Parts 3 | . . . . . . . . . . . . . . . . . . . . . . . . . . 2 . 1 System Corruption 26 | . . . . . . . . . . . . . . . . . . . . . . . . . . 14 . 12 Parts Lost 96 | . . . 1 . . . 1 6 2 . . . 4 . . 2 3 . . 11 34 2 1 6 1 1 . 21 Power 12 | . . . . . . . . 1 1 . . . 1 . . . . . . 2 3 . . . . . . 4 Propulsion 31 | . . . 1 . . . . 2 . . . . . . . 1 1 . . 2 14 2 1 2 1 . . 4 Utility 38 | . . . . . . . . 2 . . . . 2 . . 1 2 . . 6 11 . . 4 . 1 . 9 Weapon 15 | . . . . . . . 1 1 1 . . . 1 . . . . . . 1 6 . . . . . . 4 Highest Loss Streak 18 | . . . 1 . . . 1 3 1 . . . 2 . . 1 2 . . 8 11 1 1 4 1 1 . 18 To Critical Strikes 1 | . . . . . . . . . . . . . . . . . . . . . . . . 1 . . . . Average Slot Usage (%) 84 | . 87 92 99 99 98 100 99 99 99 99 98 91 75 84 81 79 79 85 85 77 74 68 81 75 58 79 77 75 Engine 4 | . 13 14 11 11 9 9 9 . 4 1 9 7 6 7 7 5 1 . 6 1 . 1 5 4 . . . . Core 2 | . . . . . . . . 7 4 7 . . . . . . 4 6 6 2 2 4 5 4 2 5 5 3 Reactor 2 | . . . . . . . . . . . . . . . . 6 6 5 . 3 4 . . . 3 5 5 5 Treads 18 | . 25 28 33 33 36 36 36 34 36 36 35 14 . . . 2 7 14 20 11 3 24 28 22 13 19 15 14 Leg 1 | . . . . . . . . . . . . . . . . . 1 4 . 8 10 . . . 4 1 . . Wheel 2 | . . . . . . . . . . . . 7 15 15 15 9 3 . . . 5 . . . 3 1 . . Device 9 | . 3 . . . 7 9 9 2 . . . 15 15 15 15 19 9 7 13 3 13 6 11 8 16 20 20 20 Storage 6 | . 14 14 11 11 9 9 9 9 9 9 9 7 2 4 7 6 6 6 6 7 4 . . 2 . 5 5 4 Processor 10 | . 2 . 11 11 9 9 9 9 13 18 18 15 10 7 7 6 13 13 13 12 9 5 5 5 5 6 10 7 Protection 8 | . . 6 11 10 9 9 8 15 13 8 8 7 10 18 12 6 9 11 6 10 3 1 5 9 1 8 10 9 Energy Gun 1 | . 6 . . . . . . . . . . . 1 . . . 11 . . 4 5 . . . . . . . Ballistic Cannon 9 | . 20 27 21 21 18 17 17 17 13 17 16 15 9 15 13 12 . 12 9 6 . . . 4 . . . 3 Naked Turns 119 | . . . . . . . . . . . . . . . . . . . . . 119 . . . . . . . Heaviest Build 160 | 12 32 38 43 101 103 108 108 113 113 114 115 120 117 127 133 155 151 153 153 153 134 57 57 160 72 80 72 112 Greatest Support 240 | 40 46 46 69 69 92 92 92 86 84 80 80 56 56 56 56 56 98 118 110 110 140 134 129 176 16 230 230 240 Greatest Overweight (x) 12 | . 7 . . 1 1 1 1 1 1 1 4 4 2 2 2 5 5 1 1 2 12 3 . 1 4 4 . . Average Overweight (x) 1 | . . . . . 1 1 1 1 1 1 1 3 . 1 2 2 3 1 1 1 1 . . . 1 . . . Largest Inventory Capacity 25 | 8 15 15 15 25 25 25 25 25 25 25 25 25 25 25 25 25 25 25 25 25 25 5 5 25 10 10 10 20 Average Capacity 19 | 8 14 15 15 17 25 25 25 25 25 25 25 25 13 16 25 25 25 25 25 25 20 5 5 14 5 10 10 18 Most Carried 25 | 6 15 15 15 25 24 25 25 25 25 25 25 25 22 8 25 25 25 25 25 25 25 5 4 6 8 10 10 20 Average Carried 18 | 6 11 14 14 15 23 24 24 23 24 24 24 22 12 6 20 24 24 24 24 24 19 4 4 5 4 9 9 15 Final Capacity 25 | 8 15 15 15 25 25 25 25 25 25 25 25 25 5 25 25 25 25 25 25 25 5 5 5 5 10 10 10 5 Final Carried 25 | 6 15 15 15 25 23 25 25 25 25 25 25 21 5 8 25 25 24 25 25 25 5 4 4 5 8 10 10 5 Class Distribution -------------------- 57% | Mutant 29% | Scavenger-Mutant 10% | Derelict-Mutant Dominant Class ---------------- Mutant | -10/Materials Mutant | -10/Mines Mutant | -9/Materials Mutant | -9/Storage Commander-Mutant | -8/Materials Mutant | -8/Garrison Mutant | -8/Materials Mutant | -8/Garrison Scavenger-Mutant | -8/Materials Scavenger-Mutant | -8/Garrison Scavenger-Mutant | -8/Materials Mutant | -7/Factory Mutant | -7/Waste Mutant | -7/Factory Mutant | -7/Garrison Mutant | -6/Factory Mutant | -6/Lower Caves Mutant | -6/Lower Caves Mutant | -6/Zion Mutant | -5/Proximity Caves Scavenger-Mutant | -5/Factory Scavenger-Mutant | -5/Upper Caves Scavenger-Mutant | -5/Upper Caves Scavenger-Mutant | -4/Factory Scavenger-Mutant | -4/Extension Scavenger-Mutant | -4/Cetus Scavenger-Mutant | -4/Archives Scavenger-Mutant | -4/Hub_04(d) Resources | -11 -10 -10 -9 -9 -8 -8 -8 -8 -8 -8 -8 -7 -7 -7 -7 -6 -6 -6 -6 -5 -5 -5 -5 -4 -4 -4 -4 -4 ----------- Run | Scr Mat Min Mat Sto Mat Gar Mat Gar Mat Gar Mat Fac Was Fac Gar Fac Low Low Zio Pro Fac Upp Upp Fac Ext Cet Arc Hub Matter Collected 13399 | 197 443 190 1021 548 50 187 540 527 856 683 675 468 445 52 588 861 756 604 64 870 879 164 11 238 436 106 373 567 Remotely . | . . . . . . . . . . . . . . . . . . . . . . . . . . . . . Salvage Created 18499 | . 757 31 1513 795 . 264 722 150 1031 783 482 169 . 101 471 1219 790 652 . 930 3860 228 87 480 930 290 285 1479 Parts 873 | . 42 4 117 53 . 21 46 11 41 26 29 10 . 4 39 53 30 21 . 35 148 11 1 24 22 9 18 58 Haulers Intercepted 22 | . 2 . 6 4 . . 1 . 1 1 2 1 . . . 1 . . . . 2 . . . . . . 1 Recyclers Shooed 6 | . 1 . 1 . . . 1 . . . . . . . . . . . . . 3 . . . . . . . Parts Field Recycled . | . . . . . . . . . . . . . . . . . . . . . . . . . . . . . Retrieved Matter . | . . . . . . . . . . . . . . . . . . . . . . . . . . . . . Parts Self-Destructed 88 | . . . . . . . . . . . . . . . . . 28 12 4 36 . 8 . . . . . . Prevented 1 | . . . . . . . . . . . . . . . . . . . . 1 . . . . . . . . Kills | -11 -10 -10 -9 -9 -8 -8 -8 -8 -8 -8 -8 -7 -7 -7 -7 -6 -6 -6 -6 -5 -5 -5 -5 -4 -4 -4 -4 -4 ------- Run | Scr Mat Min Mat Sto Mat Gar Mat Gar Mat Gar Mat Fac Was Fac Gar Fac Low Low Zio Pro Fac Upp Upp Fac Ext Cet Arc Hub Combat Hostiles Destroyed 349 | . 16 6 39 18 . 9 24 9 11 18 8 7 . 2 12 22 20 12 . 22 46 3 1 14 7 2 . 21 Melee 18 | . . . . . . . . . 2 . . . . . . . . . . 1 10 1 . . 2 . . 2 Guns 31 | . 5 . . . . . . . . . . . . . . . 9 . . . 17 . . . . . . . Cannons 209 | . 8 3 30 18 . 9 16 5 4 16 8 5 . 2 6 19 1 5 . 13 9 1 . 11 4 . . 16 AOE 72 | . 3 3 9 . . . 8 4 . 2 . 2 . . 6 3 10 7 . 7 7 . . . . . . 1 Classes Destroyed 23 | . 6 . 4 1 . 1 4 2 . . . . . . . . 3 . . 1 1 . . . . . . . Worker 28 | . . . 3 1 . . 1 . 6 . . . . . . 3 . . . . 9 . . . 1 . . 4 Builder 13 | . 1 . 5 . . . 1 . 1 . . . . . . 1 . . . . 1 . . . . . . 3 Hauler 22 | . 2 . 6 4 . . 1 . 1 1 2 1 . . . 1 . . . . 2 . . . . . . 1 Recycler 26 | . 3 . 1 3 . . 1 . 6 . . . . . . 1 . . . . 8 . . . 3 . . . Mechanic 2 | . . . . . . . 1 . 1 . . . . . . . . . . . . . . . . . . . Operator 11 | . . . . 1 . . . . . . . . . . . . . . . . 2 . . . . . 8 . Watcher 20 | . 2 . 3 2 . 1 1 . 3 . 1 . . . 1 . . . . . 3 . . . . 1 . 2 Swarmer 80 | . 5 6 7 7 . 3 3 3 . . . 4 . . 6 4 7 7 . 2 4 . . 8 1 . . 3 Cutter 3 | . . . . . . . 3 . . . . . . . . . . . . . . . . . . . . . Saboteur 1 | . . . . . . . . . . . . . . . . . . . . . 1 . . . . . . . Grunt 134 | . 11 . 20 3 . 1 8 . 5 15 2 3 . . . 10 6 3 . 13 25 1 . . 3 . . 5 Brawler 9 | . . . 2 . . . 1 . . . . . . . . . . 1 . 2 1 . . 1 . . . 1 Duelist 11 | . . . . . . . . 2 . 1 . . . . . . 3 . . 1 1 . . 1 . . . 2 Protector 2 | . . . 1 . . . . . . . . . . . . . . . . 1 . . . . . . . . Sentry 62 | . . . 9 8 . 3 6 1 4 2 6 . . 1 4 3 2 . . 1 4 1 1 1 2 . . 3 Specialist 4 | . . . . . . . . 2 . . . . . . 2 . . . . . . . . . . . . . Hunter 13 | . . . . . . . 2 1 2 1 . . . 1 . 2 . 1 . . 2 . . . . 1 . . Programmer 21 | . . . . . . 2 . . . . . . . . . 3 1 . . 1 8 . . 2 . . . 4 Heavy 1 | . . . . . . . 1 . . . . . . . . . . . . . . . . . . . . . Behemoth 4 | . . . . . . . . . . . . . . . . . . . . 1 . 1 . 1 1 . . . Cetus Guard 1 | . . . . . . . . . . . . . . . . . . . . . . . . . . 1 . . Lightning 3 | . . . . . . . . . . . . . . . . . . . . . . . . . . . . 3 Packrat 3 | . . . . . . . . . . . . . . . . . . 3 . . . . . . . . . . Samaritan 6 | . . . . . . . . . . . . . . . . . 4 2 . . . . . . . . . . Thief 1 | . . . . . . . . . . . . . . . . . 1 . . . . . . . . . . . Savage 2 | . . . . . . . . . . . . . . . . . . 1 . . . . . . . 1 . . Mutant 1 | . . . . . . . . . . . . . . . . . 1 . . . . . . . . . . . Best Kill Streak 11 | . 5 3 8 5 . 6 11 3 4 4 4 3 . 2 4 5 4 4 . 7 6 1 1 5 2 2 2 8 Combat Bots Only 8 | . 5 3 6 5 . 6 8 3 2 4 4 3 . 2 4 5 4 4 . 7 6 1 1 5 1 1 . 7 Max Kills in Single Turn 8 | . 3 2 4 2 . 1 3 3 1 1 1 1 . 1 3 2 3 3 . 2 3 1 1 1 1 2 1 8 Gunslinging . | . . . . . . . . . . . . . . . . . . . . . . . . . . . . . Exploded 3 | . 3 2 3 . . . 3 3 . 1 . 1 . . 3 2 3 3 . 2 3 . . . . . . 1 Melee 1 | . . . . . . . . . 1 . . . . . . . . . . 1 1 1 . . 1 . . 1 Uniques/NPCs Destroyed 1 | . . . . . . . . . . . . . . . . . . . . . . . . . . 1 . . A7 (-4/Cetus) Combat | -11 -10 -10 -9 -9 -8 -8 -8 -8 -8 -8 -8 -7 -7 -7 -7 -6 -6 -6 -6 -5 -5 -5 -5 -4 -4 -4 -4 -4 -------- Run | Scr Mat Min Mat Sto Mat Gar Mat Gar Mat Gar Mat Fac Was Fac Gar Fac Low Low Zio Pro Fac Upp Upp Fac Ext Cet Arc Hub Damage Taken 27560 | . 677 94 642 415 12 251 1238 1560 694 782 189 305 300 16 606 1087 743 393 . 2669 5587 565 281 2011 442 246 131 5624 Core 3129 | . 106 10 97 6 . 33 72 126 96 120 27 9 31 . 30 64 . 43 . 150 940 . . 132 52 . . 985 Absorbed by Shields 1664 | . . . . . 5 58 . . . 62 . 104 . . . 560 240 143 . 205 . . . . 135 56 24 72 Reduced by Siege Mode 282 | . . . . . . . . . . . . . . . . 12 22 45 . . 131 . . . . . . 72 Regen/Repaired (Parts) 2001 | . . . 96 209 . . 247 . . . 236 . 132 . 126 56 . . . . 482 . . . 417 . . . Core Remaining (%) 57 | 100 . 53 . 74 . . . . . . 13 . . . 90 . . . . 69 . . 6 . . . . . Volleys Fired 1151 | . 67 7 81 51 . 17 70 55 38 57 19 29 13 2 28 59 59 26 1 50 182 3 15 37 22 13 77 73 Largest 2 | . 2 2 2 2 . 2 2 2 2 2 2 2 2 2 2 2 2 2 1 2 2 1 1 2 1 1 1 2 Hottest 180 | . 80 78 78 78 . 78 78 78 83 122 122 122 122 122 122 122 176 105 48 105 176 98 98 163 110 110 110 180 Shots Fired 1902 | . 123 12 157 98 . 34 128 100 75 107 36 50 26 4 52 113 100 43 1 69 246 4 15 73 24 13 77 122 Gun 405 | . 69 . . . . . . . . . . . . . . . 87 . . 10 169 . . . . . 70 . Cannon 1439 | . 54 10 152 98 . 34 118 96 75 102 36 48 26 4 48 111 5 40 1 50 73 4 15 73 24 13 7 122 Launcher 58 | . . 2 5 . . . 10 4 . 5 . 2 . . 4 2 8 3 . 9 4 . . . . . . . Special . | . . . . . . . . . . . . . . . . . . . . . . . . . . . . . Kinetic 1280 | . 52 10 152 98 . 34 118 96 75 102 34 48 26 4 48 111 5 40 1 50 10 . . 36 1 . 70 59 Thermal 459 | . 29 . . . . . . . . . 2 . . . . . 87 . . . 232 4 15 37 . . . 53 Explosive 58 | . . 2 5 . . . 10 4 . 5 . 2 . . 4 2 8 3 . 9 4 . . . . . . . Electromagnetic 105 | . 42 . . . . . . . . . . . . . . . . . . 10 . . . . 23 13 7 10 Robot Hit Streak 39 | . 10 2 8 8 . 6 14 9 7 24 23 3 10 12 16 11 39 12 . 9 18 2 5 6 5 4 11 18 Robot Miss Streak 8 | . 5 2 6 2 . 3 4 4 8 4 1 6 2 1 3 3 1 1 . 2 3 . 1 4 2 1 2 4 Penetration Max 2 | . . . . . . . . . . 1 . . 1 . 1 2 . 1 . 1 . . . . . . 1 1 Secondary Targets 5 | . 1 . . . . . . . . . . . . . . . 1 . . . 3 . . . . . . . Max Gunslinging Chain 1 | . 1 . . . . . . . . . . . . . . . 1 . . . 1 . . . . . . . Capacitor 107 | . . . . . . . . . . . . . . . . . 5 . . . 102 . . . . . . . Shots Hit Robots 1341 | . 69 6 86 60 . 21 75 61 61 74 25 26 47 3 41 73 83 28 2 48 217 10 13 44 25 9 55 79 Core Hits 691 | . 25 6 66 27 . 12 45 19 18 41 12 10 2 2 26 42 38 24 . 48 119 5 1 12 14 3 25 49 Critical Kills 90 | . . . . . . . . . 1 7 7 5 . 1 7 21 4 9 . 6 12 . 1 1 . . 1 7 Critical Parts Destroyed 112 | . . . . . . . . . 11 11 5 9 4 . 17 23 4 4 . 2 14 . . . . . . 8 Critical Strikes 273 | . 3 1 11 3 . 1 2 1 13 23 15 14 19 1 25 44 8 15 . 14 37 . 1 2 3 . 1 16 Meltdown 3 | . . . . . . . . . . . . . . . . . . . . . 1 . 1 1 . . . . Destroy 201 | . . . . . . . . . . 19 15 14 13 1 25 44 8 13 . 8 25 . . . . . 1 15 Blast 34 | . 2 1 11 3 . . 2 1 1 4 . . . . . . . 2 . 6 . . . 1 . . . . Corrupt 2 | . 1 . . . . . . . . . . . . . . . . . . . . . . . . . . 1 Smash 19 | . . . . . . 1 . . 12 . . . 6 . . . . . . . . . . . . . . . Impale 14 | . . . . . . . . . . . . . . . . . . . . . 11 . . . 3 . . . Melee Attacks 192 | . . . 1 . . 3 . 1 26 . 2 . 29 . 18 3 5 2 2 5 68 13 2 1 11 . . . Impact 69 | . . . 1 . . 3 . 1 26 . 2 . 29 . . . 5 2 . . . . . . . . . . Slashing . | . . . . . . . . . . . . . . . . . . . . . . . . . . . . . Piercing 121 | . . . . . . . . . . . . . . . 18 3 . . . 5 68 13 2 1 11 . . . Sneak Attacks 35 | . . . . . . . . . 9 . . . . . 1 . . . 2 3 12 2 . . 6 . . . Combat Hostiles 5 | . . . . . . . . . 2 . . . . . . . . . . 3 . . . . . . . . Follow-up Attacks 2 | . . . . . . . . . . . . . . . . . . . . . 2 . . . . . . . Damage Inflicted 45357 | . 1727 294 2636 1537 . 639 2810 1672 2557 1846 425 624 1698 53 1185 1510 2887 1061 . 2219 8312 356 429 1852 1014 389 1304 4321 Guns 7300 | . 481 . . . . . . . . . . . . . . . 2016 . . 124 3562 . . . . . 1117 . Cannons 22590 | . 751 141 1888 1405 . 525 1922 1303 823 1491 421 456 413 53 669 1302 95 645 . 953 1616 64 367 1659 492 389 187 2560 Explosions 8646 | . 493 139 610 . . . 834 350 . 355 . 156 . . 426 208 776 416 . 939 1124 . . 193 . . . 1627 Melee 6234 | . . . . . . 108 . . 1674 . . . 1285 . 90 . . . . 203 2003 292 62 . 517 . . . Ramming 587 | . 2 14 138 132 . 6 54 19 60 . 4 12 . . . . . . . . 7 . . . 5 . . 134 Kinetic 18281 | . 751 141 1888 1405 . 525 1922 1303 823 1491 421 456 413 53 669 1302 95 645 . 953 88 . . 1033 . . 1117 787 Thermal 10418 | . 317 . . . . . . . . . . . . . . . 2016 . . . 5090 64 367 819 . . . 1745 Explosive 6235 | . 366 139 610 . . . 834 350 . 355 . 156 . . 426 208 776 416 . 939 660 . . . . . . . Electromagnetic 3602 | . 291 . . . . . . . . . . . . . . . . . . 124 464 . . . 492 389 187 1655 Impact 3067 | . . . . . . 108 . . 1674 . . . 1285 . . . . . . . . . . . . . . . Slashing . | . . . . . . . . . . . . . . . . . . . . . . . . . . . . . Piercing 3167 | . . . . . . . . . . . . . . . 90 . . . . 203 2003 292 62 . 517 . . . Highest Corruption 40 | . . . . . . 2 2 2 2 2 2 . . . . 1 1 1 1 . 6 3 3 5 5 19 19 40 Average Corruption 2 | . . . . . . 1 2 2 2 2 2 . . . . 1 1 1 1 . 2 3 3 1 5 13 12 21 Corruption Purged 34 | . . . . . . . . . . . . . . . . . . . . . 12 . . . . . 19 3 Corruption Blocked . | . . . . . . . . . . . . . . . . . . . . . . . . . . . . . Effects 288 | . . . . . . 13 21 20 20 10 13 . . . . 3 28 23 . . 27 18 2 . 40 12 15 23 Message Errors 74 | . . . . . . 6 4 7 2 3 4 . . . . . 9 5 . . 5 4 . . 11 3 6 5 Matter Fused 73 | . . . . . . 2 7 6 5 2 2 . . . . 1 9 8 . . 9 3 . . 9 3 4 3 Heat Flow Errors 35 | . . . . . . . 3 3 3 . 1 . . . . . 4 4 . . 3 3 . . 5 2 1 3 Energy Discharges 27 | . . . . . . 3 2 1 3 1 2 . . . . . . . . . 3 5 1 . 3 . . 3 Parts Rejected 1 | . . . . . . . . . . . . . . . . . . . . . 1 . . . . . . . Data Loss (minor) 33 | . . . . . . 2 1 2 3 . 2 . . . . 2 1 4 . . 1 2 . . 8 1 2 2 Data Loss (major) 10 | . . . . . . . . . 2 1 1 . . . . . 1 . . . 3 . . . 2 . . . Misfires 10 | . . . . . . . 2 . . 1 . . . . . . 1 1 . . . 1 . . 2 1 1 . Alerts 12 | . . . . . . . 2 1 1 1 1 . . . . . 2 1 . . 1 . 1 . . . . 1 Misdirections 3 | . . . . . . . . . . . . . . . . . . . . . . . . . . 1 . 2 Weapon Failures 10 | . . . . . . . . . 1 1 . . . . . . 1 . . . 1 . . . . 1 1 4 Overload Shots . | . . . . . . . . . . . . . . . . . . . . . . . . . . . . . Overflow Damage 2398 | . 49 4 . 4 . . 30 73 1073 8 . . 67 . 6 11 19 57 . 20 416 82 . 161 108 47 22 141 Projectiles 424 | . . 4 . 4 . . 17 37 15 8 . . . . . . . 57 . . 61 . . 146 4 47 22 2 Explosions 306 | . 49 . . . . . 13 36 . . . . . . 3 11 19 . . 20 1 . . 15 . . . 139 Melee 1668 | . . . . . . . . . 1058 . . . 67 . 3 . . . . . 354 82 . . 104 . . . Knockbacks 158 | . 9 2 15 2 . 2 15 20 22 12 1 9 . . 3 14 2 9 . 5 3 . . 4 . . . 9 Impact 12 | . . . . . . . 1 . 10 . . . . . . . . . . . . . . . . . . 1 Kinetic 125 | . 7 1 11 2 . 2 11 18 11 11 1 8 . . 3 11 2 8 . 4 2 . . 4 . . . 8 Secondary 21 | . 2 1 4 . . . 3 2 1 1 . 1 . . . 3 . 1 . 1 1 . . . . . . . Self-Inflicted Damage 683 | . 100 4 . . . . 70 120 . 38 . 6 . . . . 38 40 . 5 37 . . . 2 . . 223 Shots 19 | . 2 1 . . . . 3 3 . 2 . . . . . . 1 1 . 1 2 . . . . . . 3 Rammed 69 | . 3 6 16 16 . 1 3 3 5 . . 1 . . . . . . . . 1 . . . 1 . . 13 Targets Rammed 79 | . 3 6 19 20 . 1 3 3 6 . 1 1 . . . . . . . . 1 . . . 1 . . 14 Kicked . | . . . . . . . . . . . . . . . . . . . . . . . . . . . . . Crushed 10 | . . . 3 4 . . . . 1 . 1 . . . . . . . . . . . . . . . . 1 Highest Temperature 480 | . 228 90 243 198 . 129 294 280 417 270 480 263 . . 32 169 263 407 27 466 348 96 329 199 167 131 128 268 Average Temperature 51 | . 66 47 64 56 . 41 55 68 75 71 95 107 . . 14 41 87 75 1 62 96 40 195 118 56 40 45 96 Received Heat Transfer 5605 | . 186 . 258 150 4 64 315 . 180 414 99 82 . . 162 321 86 121 . 628 1257 126 45 204 96 7 7 793 Effects 24 | . . . . . . . . 3 . 1 2 3 . . . . . 1 . 8 6 . . . . . . . Shutdowns 2 | . . . . . . . . . . . 1 . . . . . . . . 1 . . . . . . . . Energy Bleed 3 | . . . . . . . . . . 1 . . . . . . . . . 1 1 . . . . . . . Interference 13 | . . . . . . . . 3 . . . 3 . . . . . . . 3 4 . . . . . . . Matter Decay 1 | . . . . . . . . . . . . . . . . . . . . . 1 . . . . . . . Short Circuit 1 | . . . . . . . . . . . . . . . . . . 1 . . . . . . . . . . Damage (minor) 1 | . . . . . . . . . . . 1 . . . . . . . . . . . . . . . . . Damage (major) 3 | . . . . . . . . . . . . . . . . . . . . 3 . . . . . . . . Siege Activations 16 | . . . . . . . . . . . . . . . . 1 4 2 . 1 4 . . . . . . 4 Total Turns 682 | . . . . . . . . . . . . . . . . 11 146 60 . 14 233 . . . . . . 218 Longest Duration 164 | . . . . . . . . . . . . . . . . 11 57 52 . 14 105 . . . . . . 164 Robots Corrupted 5 | . . . . . . . . . . . . . . . . . . . . 1 . . . . . 2 . 2 Combat Hostiles 5 | . . . . . . . . . . . . . . . . . . . . 1 . . . . . 2 . 2 Parts Fried 31 | . 3 . . . . . . . 10 . . . . . . . 1 . . 5 . . . . 1 4 . 7 Impact Corruptions 33 | . . . . . . . . . 31 . . . 2 . . . . . . . . . . . . . . . Robots Melted 6 | . . . . . . . . . . . . . . . . . . . . . 3 . 1 2 . . . . Combat Hostiles 5 | . . . . . . . . . . . . . . . . . . . . . 2 . 1 2 . . . . Parts Melted 19 | . . . . . . . . . . . . . . . . . 1 . . . 15 . 2 1 . . . . Heat Transferred 12126 | . 675 . . . . . . . . . . . . . . . 2738 . . . 6888 100 550 1000 . . . 175 Parts Sabotaged 4 | . . . . . . . . . . . . . . . . 2 . . . . . . . . . . . 2 Parts Stolen 3 | . . . . . . . . . . . . . . . . . 3 . . . . . . . . . . . Parts Stripped . | . . . . . . . . . . . . . . . . . . . . . . . . . . . . . Power Chain Reactions 4 | . 1 . . . . . . . . . . . . . . . . . . . . . . . . . . 3 Missiles Intercepted . | . . . . . . . . . . . . . . . . . . . . . . . . . . . . . Alert | -11 -10 -10 -9 -9 -8 -8 -8 -8 -8 -8 -8 -7 -7 -7 -7 -6 -6 -6 -6 -5 -5 -5 -5 -4 -4 -4 -4 -4 ------- Run | Scr Mat Min Mat Sto Mat Gar Mat Gar Mat Gar Mat Fac Was Fac Gar Fac Low Low Zio Pro Fac Upp Upp Fac Ext Cet Arc Hub Peak Influence 1758 | . 312 143 867 553 247 736 756 546 360 710 617 239 43 806 1758 1376 . . . . 1485 . . 740 1060 1079 690 1152 Initial 922 | . . 73 . 282 24 160 358 186 265 26 345 11 . . 572 922 . . . . . . . 305 290 593 423 . Average 387 | . 192 51 401 230 158 502 387 344 198 291 243 72 11 345 1314 1028 . . . . 559 . . 486 377 775 184 431 Maximum Alert Level 5 | . 1 . 3 2 1 3 3 2 1 3 2 1 . 3 5 4 . . . . 4 . . 3 3 3 2 4 Low Security (%) 34 | 100 60 100 12 36 40 4 . 12 45 26 53 92 100 29 . . . . . . 28 . . . . . 65 22 Level 1 33 | . 39 . 50 58 59 22 81 42 54 53 30 7 . 26 . . . . . . 15 . . 37 77 . 17 45 Level 2 15 | . . . 23 5 . 66 8 45 . 18 15 . . 37 6 . . . . . 19 . . 53 17 16 17 5 Level 3 10 | . . . 13 . . 5 9 . . 1 . . . 6 36 72 . . . . 16 . . 9 5 83 . 20 Level 4 4 | . . . . . . . . . . . . . . . 26 27 . . . . 19 . . . . . . 5 Level 5 1 | . . . . . . . . . . . . . . . 30 . . . . . . . . . . . . . High Security . | . . . . . . . . . . . . . . . . . . . . . . . . . . . . . Max Security . | . . . . . . . . . . . . . . . . . . . . . . . . . . . . . Squads Dispatched 77 | . 5 . 9 2 2 . 4 . 3 . 2 5 . 7 . 10 . . . 1 13 . . 5 1 . . 8 Investigation 25 | . 4 . 5 . 2 . 1 . 2 . 1 2 . 3 . 1 . . . . 3 . . . . . . 1 Extermination 11 | . . . . . . . . . . . . 1 . 1 . 2 . . . . 4 . . 1 . . . 2 Reinforcement 21 | . 1 . 1 2 . . 3 . . . 1 2 . 2 . 4 . . . . 3 . . . . . . 2 Assault 16 | . . . 3 . . . . . . . . . . . . 3 . . . 1 3 . . 2 1 . . 3 Garrison 4 | . . . . . . . . . 1 . . . . 1 . . . . . . . . . 2 . . . . Intercept . | . . . . . . . . . . . . . . . . . . . . . . . . . . . . . Searches Triggered . | . . . . . . . . . . . . . . . . . . . . . . . . . . . . . Construction Impeded 2 | . . . . . . . . . . . . 1 . 1 . . . . . . . . . . . . . . Haulers Reinforced 2 | . . . . . . . . . . . . 1 . . . 1 . . . . . . . . . . . . Active Scanning Responses . | . . . . . . . . . . . . . . . . . . . . . . . . . . . . . Cargo Convoy Interrupts . | . . . . . . . . . . . . . . . . . . . . . . . . . . . . . Stealth | -11 -10 -10 -9 -9 -8 -8 -8 -8 -8 -8 -8 -7 -7 -7 -7 -6 -6 -6 -6 -5 -5 -5 -5 -4 -4 -4 -4 -4 --------- Run | Scr Mat Min Mat Sto Mat Gar Mat Gar Mat Gar Mat Fac Was Fac Gar Fac Low Low Zio Pro Fac Upp Upp Fac Ext Cet Arc Hub Distress Signals 22 | . 1 . 4 . . . 3 . 4 1 1 . 1 . . 2 . . . . 1 . . . 1 2 1 . Communications Jammed 26 | . . . . . . . . . . . . . . . 13 3 . . . . 10 . . . . . . . Distress Signals 26 | . . . . . . . . . . . . . . . 13 3 . . . . 10 . . . . . . . Times Spotted 688 | . 23 6 59 23 10 24 32 10 16 26 15 12 8 8 25 39 35 11 . 31 98 8 1 20 54 11 29 54 Peak Tracking Total 12 | . 4 3 7 3 5 6 4 3 3 5 4 3 5 3 4 7 9 4 . 9 10 3 1 6 9 5 2 12 Tactical Retreats 54 | . 1 . . . . 1 1 . . 7 . 4 3 . 2 3 7 . . 1 14 1 . . 3 . . 6 Traps | -11 -10 -10 -9 -9 -8 -8 -8 -8 -8 -8 -8 -7 -7 -7 -7 -6 -6 -6 -6 -5 -5 -5 -5 -4 -4 -4 -4 -4 ------- Run | Scr Mat Min Mat Sto Mat Gar Mat Gar Mat Gar Mat Fac Was Fac Gar Fac Low Low Zio Pro Fac Upp Upp Fac Ext Cet Arc Hub Traps Triggered 35 | . 6 . 2 3 . 5 . . . 6 . 2 . 1 4 . . . . . . . . . 6 . . . Indirectly . | . . . . . . . . . . . . . . . . . . . . . . . . . . . . . Trap Hack Attempts 97 | . . . 46 14 . . . 37 . . . . . . . . . . . . . . . . . . . . Triggered . | . . . . . . . . . . . . . . . . . . . . . . . . . . . . . Disarmed 2 | . . . . . . . . 2 . . . . . . . . . . . . . . . . . . . . Reprogrammed 17 | . . . 4 7 . . . . . . . 6 . . . . . . . . . . . . . . . . Reused 14 | . . . 3 1 . . . . . . 1 5 . . . 1 1 . . . 2 . . . . . . . Traps Extracted . | . . . . . . . . . . . . . . . . . . . . . . . . . . . . . Installed 13 | . . . 2 . . . . . . . 2 4 . . . 1 1 1 . . 2 . . . . . . . Triggered 16 | . . . 3 1 . . . . . . 1 5 . . . 1 1 . . . 2 1 . . . . . 1 Most Traps Carried 6 | . . 2 2 . . . . 6 6 6 6 4 . . 5 5 4 3 2 2 2 . . . . . . . Machines | -11 -10 -10 -9 -9 -8 -8 -8 -8 -8 -8 -8 -7 -7 -7 -7 -6 -6 -6 -6 -5 -5 -5 -5 -4 -4 -4 -4 -4 ---------- Run | Scr Mat Min Mat Sto Mat Gar Mat Gar Mat Gar Mat Fac Was Fac Gar Fac Low Low Zio Pro Fac Upp Upp Fac Ext Cet Arc Hub Machines Disabled 65 | . 3 2 2 3 . 1 2 4 1 . . . . 1 3 . . . . . 9 . . 6 3 . 4 21 Max in Single Turn 8 | . 1 2 1 1 . 1 1 1 1 . . . . . 1 . . . . . 2 . . 3 1 . 1 8 Garrison Access 3 | . . . . 1 . . . . . . . . . . . . . . . . 2 . . . . . . . Network Hub 2 | . . . . . . . . . . . . . . . . . . . . . . . . . . . . 2 Machines Sabotaged . | . . . . . . . . . . . . . . . . . . . . . . . . . . . . . Overloaded Fab Kills . | . . . . . . . . . . . . . . . . . . . . . . . . . . . . . Hacking | -11 -10 -10 -9 -9 -8 -8 -8 -8 -8 -8 -8 -7 -7 -7 -7 -6 -6 -6 -6 -5 -5 -5 -5 -4 -4 -4 -4 -4 --------- Run | Scr Mat Min Mat Sto Mat Gar Mat Gar Mat Gar Mat Fac Was Fac Gar Fac Low Low Zio Pro Fac Upp Upp Fac Ext Cet Arc Hub Machines Accessed 89 | . 4 . 9 15 3 2 10 . 3 . 6 2 . 4 2 8 . 2 1 . 10 1 . 1 4 . . 2 Terminals 50 | . 2 . 6 11 1 2 5 . 1 . 4 2 . 2 2 3 . 1 . . 4 . . . 2 . . 2 Fabricators 5 | . . . . . . . . . . . . . . 1 . 4 . . . . . . . . . . . . Repair Stations 11 | . . . 1 2 . . 2 . . . 2 . . . . 1 . . . . 2 . . . 1 . . . Recycling Units 10 | . 2 . 2 1 1 . 1 . 1 . . . . . . . . . . . 1 . . . 1 . . . Scanalyzers 2 | . . . . . . . 1 . . . . . . . . . . . . . 1 . . . . . . . Garrison Access 8 | . . . . 1 1 . 1 . 1 . . . . 1 . . . . . . 2 . . 1 . . . . Total Hacks 237 | . 11 . 25 33 10 4 30 . 20 . 18 5 . 11 5 18 . 2 5 . 23 1 . 2 9 . . 5 Successful 134 | . 5 . 11 20 5 2 20 . 13 . 14 3 . 3 1 8 . 2 5 . 12 1 . 1 6 . . 2 Failed 102 | . 5 . 14 13 5 2 10 . 7 . 4 2 . 8 4 10 . . . . 11 . . 1 3 . . 3 Catastrophic 24 | . 1 . 4 1 . 1 3 . . . 2 1 . 2 2 3 . . . . 4 . . . . . . . Database Lockouts 1 | . 1 . . . . . . . . . . . . . . . . . . . . . . . . . . . Manual 98 | . 9 . 21 7 6 . 15 . 8 . 7 . . 5 1 10 . . . . 6 . . . 1 1 . 1 Terminals 138 | . 7 . 18 22 4 4 15 . 13 . 10 5 . 6 5 9 . 1 . . 10 . . . 4 . . 5 Fabricators 9 | . . . . . . . . . . . . . . 2 . 7 . . . . . . . . . . . . Repair Stations 27 | . . . 2 4 . . 4 . . . 8 . . . . 2 . . . . 5 . . . 2 . . . Recycling Units 27 | . 4 . 5 4 4 . 2 . 4 . . . . . . . . . . . 1 . . . 3 . . . Scanalyzers 9 | . . . . . . . 6 . . . . . . . . . . . . . 3 . . . . . . . Garrison Access 20 | . . . . 3 2 . 3 . 3 . . . . 3 . . . . . . 4 . . 2 . . . . Terminal Hacks 56 | . 2 . 3 11 . 2 4 . 8 . 5 3 . 1 1 2 . 2 5 . 3 1 . . 2 . . 1 Record 1 | . . . . . . . . . . . . . . . . . . 1 . . . . . . . . . . Part Schematic 5 | . . . . . . . . . . . . . . . . . . . 5 . . . . . . . . . Robot Analysis 6 | . 2 . 1 1 . . . . 2 . . . . . . . . . . . . . . . . . . . Prototype ID Bank 3 | . . . . 1 . . . . 1 . . . . . . 1 . . . . . . . . . . . . Open Door 9 | . . . . 4 . 1 . . . . . . . . . . . 1 . . . 1 . . 2 . . . Level Access Points 1 | . . . . . . . . . . . 1 . . . . . . . . . . . . . . . . . Branch Access Points 3 | . . . 1 . . . . . . . . . . . . 1 . . . . 1 . . . . . . . Emergency Access Points 2 | . . . . . . 1 . . . . . . . . 1 . . . . . . . . . . . . . Terminal Index 1 | . . . . . . . . . . . 1 . . . . . . . . . . . . . . . . . Alert Level 1 | . . . . . . . . . 1 . . . . . . . . . . . . . . . . . . . Unreport Threat 12 | . . . 1 2 . . 3 . 3 . 2 1 . . . . . . . . . . . . . . . . Locate Traps 7 | . . . . 2 . . . . . . 1 1 . 1 . . . . . . 1 . . . . . . 1 Reprogram Traps 2 | . . . . 1 . . . . . . . 1 . . . . . . . . . . . . . . . . Registered Components 1 | . . . . . . . . . . . . . . . . . . . . . 1 . . . . . . . Zone Layout 2 | . . . . . . . 1 . 1 . . . . . . . . . . . . . . . . . . . Fabricator Hacks 2 | . . . . . . . . . . . . . . . . 2 . . . . . . . . . . . . Network Status 1 | . . . . . . . . . . . . . . . . 1 . . . . . . . . . . . . Build 1 | . . . . . . . . . . . . . . . . 1 . . . . . . . . . . . . Repair Station Hacks 23 | . . . 2 4 . . 4 . . . 8 . . . . . . . . . 3 . . . 2 . . . Scan Component 12 | . . . 1 2 . . 2 . . . 4 . . . . . . . . . 2 . . . 1 . . . Repair 11 | . . . 1 2 . . 2 . . . 4 . . . . . . . . . 1 . . . 1 . . . Recycling Unit Hacks 10 | . 1 . 2 1 1 . 2 . 1 . . . . . . . . . . . 1 . . . 1 . . . Process 1 | . . . . . . . 1 . . . . . . . . . . . . . . . . . . . . . Retrieve Matter 1 | . . . . . . . 1 . . . . . . . . . . . . . . . . . . . . . Retrieve Components 8 | . 1 . 2 1 1 . . . 1 . . . . . . . . . . . 1 . . . 1 . . . Scanalyzer 7 | . . . . . . . 6 . . . . . . . . . . . . . 1 . . . . . . . Insert Component 4 | . . . . . . . 3 . . . . . . . . . . . . . 1 . . . . . . . Analyze 3 | . . . . . . . 3 . . . . . . . . . . . . . . . . . . . . . Garrison Access Hacks 7 | . . . . 1 1 . 1 . 1 . . . . 1 . . . . . . 1 . . 1 . . . . Unlock Access 5 | . . . . . 1 . 1 . 1 . . . . 1 . . . . . . . . . 1 . . . . Seal Access 2 | . . . . 1 . . . . . . . . . . . . . . . . 1 . . . . . . . Unauthorized Hacks 29 | . 2 . 4 3 3 . 3 . 3 . 1 . . 1 . 4 . . . . 3 . . . 1 . . 1 Terminals 15 | . . . 2 2 1 . 3 . 1 . 1 . . 1 . 1 . . . . 2 . . . . . . 1 Track 1 | . . . . . . . 1 . . . . . . . . . . . . . . . . . . . . . Assimilate 1 | . . . 1 . . . . . . . . . . . . . . . . . . . . . . . . . Botnet 11 | . . . 1 2 1 . 1 . 1 . 1 . . 1 . 1 . . . . 2 . . . . . . . Disrupt 1 | . . . . . . . 1 . . . . . . . . . . . . . . . . . . . . . Sabotage 1 | . . . . . . . . . . . . . . . . . . . . . . . . . . . . 1 Fabricators 3 | . . . . . . . . . . . . . . . . 3 . . . . . . . . . . . . Fabnet 3 | . . . . . . . . . . . . . . . . 3 . . . . . . . . . . . . Repair Stations . | . . . . . . . . . . . . . . . . . . . . . . . . . . . . . Recycling Units 8 | . 2 . 2 1 1 . . . 1 . . . . . . . . . . . . . . . 1 . . . Mask 5 | . . . 2 1 . . . . 1 . . . . . . . . . . . . . . . 1 . . . Tunnel 3 | . 2 . . . 1 . . . . . . . . . . . . . . . . . . . . . . . Scanalyzers . | . . . . . . . . . . . . . . . . . . . . . . . . . . . . . Garrison Access 3 | . . . . . 1 . . . 1 . . . . . . . . . . . 1 . . . . . . . Reprogram 2 | . . . . . 1 . . . 1 . . . . . . . . . . . . . . . . . . . Jam 1 | . . . . . . . . . . . . . . . . . . . . . 1 . . . . . . . Data Cores Recovered 1 | . . . . 1 . . . . . . . . . . . . . . . . . . . . . . . . Used . | . . . . . . . . . . . . . . . . . . . . . . . . . . . . . Hacking Detections 77 | . 3 . 8 12 2 1 10 . 3 . 5 2 . 4 2 7 . 1 . . 10 . . 1 3 1 . 2 Full Trace Events 17 | . 2 . 3 . . 1 1 . 1 . 1 2 . 2 1 1 . . . . 2 . . . . . . . Feedback Events . | . . . . . . . . . . . . . . . . . . . . . . . . . . . . . Feedback Blocked . | . . . . . . . . . . . . . . . . . . . . . . . . . . . . . Robot Schematics Acquired 3 | . . . . . . . . . . . . . . . . . . . 3 . . . . . . . . . Robots Built 1 | . . . . . . . . . . . . . . . . 1 . . . . . . . . . . . . Authchips . | . . . . . . . . . . . . . . . . . . . . . . . . . . . . . Time 116 | . . . . . . . . . . . . . . . . 116 . . . . . . . . . . . . Total Robot Build Rating 3 | . . . . . . . . . . . . . . . . 3 . . . . . . . . . . . . Part Schematics Acquired 24 | . . . . . . . 3 . . . . . . . . . . . 21 . . . . . . . . . Parts Built . | . . . . . . . . . . . . . . . . . . . . . . . . . . . . . Authchips . | . . . . . . . . . . . . . . . . . . . . . . . . . . . . . Time . | . . . . . . . . . . . . . . . . . . . . . . . . . . . . . Total Part Build Rating . | . . . . . . . . . . . . . . . . . . . . . . . . . . . . . Parts Repaired 11 | . . . 1 2 . . 2 . . . 4 . . . . . . . . . 1 . . . 1 . . . Time 478 | . . . 32 64 . . 76 . . . 164 . . . . . . . . . 86 . . . 56 . . . Parts Recycled . | . . . . . . . . . . . . . . . . . . . . . . . . . . . . . Recycled Matter 269 | . . . . . . . 269 . . . . . . . . . . . . . . . . . . . . . Retrieved Matter 474 | . . . . . . . 474 . . . . . . . . . . . . . . . . . . . . . Retrieved Components 57 | . 10 . 15 10 . . . . 5 . . . . . . . . . . . 10 . . . 7 . . . Parts Scanalyzed 4 | . . . . . . . 3 . . . . . . . . . . . . . 1 . . . . . . . Part Schematics Acquired 3 | . . . . . . . 3 . . . . . . . . . . . . . . . . . . . . . Parts Damaged 1 | . . . . . . . 1 . . . . . . . . . . . . . . . . . . . . . Bothacking | -11 -10 -10 -9 -9 -8 -8 -8 -8 -8 -8 -8 -7 -7 -7 -7 -6 -6 -6 -6 -5 -5 -5 -5 -4 -4 -4 -4 -4 ------------ Run | Scr Mat Min Mat Sto Mat Gar Mat Gar Mat Gar Mat Fac Was Fac Gar Fac Low Low Zio Pro Fac Upp Upp Fac Ext Cet Arc Hub Used RIF Installer . | . . . . . . . . . . . . . . . . . . . . . . . . . . . . . Robots Hacked 19 | . . . . . . . . . . . . . . . . . . . 2 1 5 5 2 . 2 . . 2 Non-combat . | . . . . . . . . . . . . . . . . . . . . . . . . . . . . . Combat 19 | . . . . . . . . . . . . . . . . . . . 2 1 5 5 2 . 2 . . 2 Robot Hacks Applied 2 | . . . . . . . . . . . . . . . . . . . 2 . . . . . . . . . parse_system 2 | . . . . . . . . . . . . . . . . . . . 2 . . . . . . . . . Relay Couplers Released 4 | . . . . . . . . . . . . . . . . . . . . . 4 . . . . . . . Programmers 4 | . . . . . . . . . . . . . . . . . . . . . 4 . . . . . . . Fabnet Peak Effective % 9 | . . . . . . . . . . . . . . . . . . . . 9 9 9 9 3 3 3 3 3 Autooverrided 17 | . . . . . . . . . . . . . . . . . . . . 1 5 5 2 . 2 . . 2 Robots Rewired 15 | . . . . . . 4 . . . . . . . . . . 2 . . 2 . . . . 7 . . . Allies Hacked 3 | . . . . . . . . . . . . . . 2 . . . . . . 1 . . . . . . . Hacks Repelled . | . . . . . . . . . . . . . . . . . . . . . . . . . . . . . Allies | -11 -10 -10 -9 -9 -8 -8 -8 -8 -8 -8 -8 -7 -7 -7 -7 -6 -6 -6 -6 -5 -5 -5 -5 -4 -4 -4 -4 -4 -------- Run | Scr Mat Min Mat Sto Mat Gar Mat Gar Mat Gar Mat Fac Was Fac Gar Fac Low Low Zio Pro Fac Upp Upp Fac Ext Cet Arc Hub Total Allies 88 | . . . 1 10 1 4 . . 2 . . . 18 . . 1 2 . 3 3 6 5 2 . 23 5 . 2 Largest Group 18 | . . . 1 11 11 7 1 1 2 2 . . 18 17 11 1 2 . 3 4 3 1 2 . 16 7 3 3 Highest-Rated Group 810 | . . . 10 98 98 133 10 10 32 32 . . 444 429 328 26 59 . 82 111 107 49 58 . 810 566 288 288 Highest-Rated Ally 159 | . . . 10 16 21 39 10 10 16 16 . . 35 35 35 26 30 . 31 49 54 49 29 . 159 138 96 96 Warlord Squad Rendezvous 1 | . . . . . . . . . . . . . . . . . . . . . 1 . . . . . . . Ghost 1 | . . . . . . . . . . . . . . . . . . . . . 1 . . . . . . . Total Orders 70 | . . . 8 6 3 2 8 4 9 . . . 1 . . 5 . 2 . 2 4 . . 1 10 1 4 . STAY 29 | . . . 5 3 2 1 4 2 5 . . . . . . 3 . . . . 2 . . . . . 2 . FOLLOW 24 | . . . 3 3 1 1 4 2 4 . . . . . . 2 . . . . 2 . . . . . 2 . EXPLORE 4 | . . . . . . . . . . . . . . . . . . 2 . 2 . . . . . . . . RETURN 13 | . . . . . . . . . . . . . 1 . . . . . . . . . . 1 10 1 . . Ally Attacks 847 | . . . . . 59 98 . . 1 6 . . 96 98 95 . 16 . . 6 24 9 8 . 180 88 22 41 Total Damage 20185 | . . . . . 547 1236 . . 15 58 . . 2470 2232 2248 . 392 . . 124 402 270 111 . 5565 2458 956 1101 Kills 137 | . . . . . 10 14 . . . 1 . . 7 25 19 . 1 . . . 1 . . . 36 14 5 4 Allies Corrupted 2 | . . . . . . . . . . . . . . . . . . . . . . 1 . . 1 . . . Allies Melted 1 | . . . . . . . . . . . . . . . . . . . . . . . 1 . . . . . Intel | -11 -10 -10 -9 -9 -8 -8 -8 -8 -8 -8 -8 -7 -7 -7 -7 -6 -6 -6 -6 -5 -5 -5 -5 -4 -4 -4 -4 -4 ------- Run | Scr Mat Min Mat Sto Mat Gar Mat Gar Mat Gar Mat Fac Was Fac Gar Fac Low Low Zio Pro Fac Upp Upp Fac Ext Cet Arc Hub Robot Analysis Total 6 | . 2 . 1 1 . . . . 2 . . . . . . . . . . . . . . . . . . . Derelict Logs Recovered 8 | . . 1 . . . . . . . . . . . . . . 1 2 1 2 . 1 . . . . . . Drone Launches 19 | . . . . . . . . . . . . . 3 . . . . 2 . 2 . . . 1 10 1 . . Drone Recoveries 18 | . . . . . . . . . . . . . 3 . . . . 1 . 2 . . . 1 10 1 . . Decoded 0b10 Intel 47 | . . . . . . . . . . . . . . . . . . . . . 47 . . . . . . . Garrisons 2 | . . . . . . . . . . . . . . . . . . . . . 2 . . . . . . . Patrols 11 | . . . . . . . . . . . . . . . . . . . . . 11 . . . . . . . Investigations 4 | . . . . . . . . . . . . . . . . . . . . . 4 . . . . . . . Reinforcements 14 | . . . . . . . . . . . . . . . . . . . . . 14 . . . . . . . Guards 16 | . . . . . . . . . . . . . . . . . . . . . 16 . . . . . . . Exploration | -11 -10 -10 -9 -9 -8 -8 -8 -8 -8 -8 -8 -7 -7 -7 -7 -6 -6 -6 -6 -5 -5 -5 -5 -4 -4 -4 -4 -4 ------------- Run | Scr Mat Min Mat Sto Mat Gar Mat Gar Mat Gar Mat Fac Was Fac Gar Fac Low Low Zio Pro Fac Upp Upp Fac Ext Cet Arc Hub Turns Passed 47060 | 17 1265 1035 2410 2522 174 1270 1482 1236 1228 1217 1345 880 994 446 1668 1293 3520 2286 4416 4124 2847 949 231 450 1714 282 4585 1174 Spaces Moved 21276 | 11 474 615 1097 1246 72 445 483 399 378 342 470 345 726 342 1003 738 1517 816 1715 1541 1388 525 121 183 1039 140 2649 456 Core 1041 | . 1 . . . . . . . . . . . . . . . . . . . 450 55 . 26 419 . . 90 Treads 14283 | 1 473 615 1097 1246 72 445 483 399 378 342 441 . . . . . 523 816 1715 1217 149 470 121 157 . 108 2649 366 Legs 681 | 10 . . . . . . . . . . . . . . . . . . . 324 347 . . . . . . . Wheels 5271 | . . . . . . . . . . . 29 345 726 342 1003 738 994 . . . 442 . . . 620 32 . . Hover . | . . . . . . . . . . . . . . . . . . . . . . . . . . . . . Flight . | . . . . . . . . . . . . . . . . . . . . . . . . . . . . . Fastest Speed 50 | 120 160 160 160 160 240 240 231 231 235 240 160 130 100 100 130 130 175 249 253 195 50 160 160 50 50 156 160 50 Average Speed 182 | 123 161 160 160 175 240 240 233 233 238 240 235 159 105 116 130 143 208 254 253 248 129 164 160 162 115 159 160 138 Slowest Speed 400 | 160 400 160 160 240 240 240 242 235 240 240 240 160 130 130 130 175 360 255 253 270 270 200 160 240 170 170 160 160 Overloaded Moves . | . . . . . . . . . . . . . . . . . . . . . . . . . . . . . Propulsion Burnouts . | . . . . . . . . . . . . . . . . . . . . . . . . . . . . . Robots Hopped . | . . . . . . . . . . . . . . . . . . . . . . . . . . . . . Cave-ins Triggered . | . . . . . . . . . . . . . . . . . . . . . . . . . . . . . Exploration Rate (%) 53 | 2 63 99 81 96 10 39 48 22 30 44 32 7 97 9 74 17 99 96 86 99 35 63 16 8 88 64 88 37 Regions Visited 28 Branch Regions 12 Pre-discovered Areas 7 | . 2 . . . 1 . . . . . . . . . . . 1 1 2 . . . . . . . . . Known Exits Taken 9 | . . 1 1 . 1 . 1 . 1 . 1 . . 1 . 1 . . . . 1 . . . . . . . Unknown Exits Taken 13 | 1 1 . . 1 . . . . . . . . . . . . 1 1 1 1 . 1 1 1 1 1 1 . Scrap Searched 25 | . . 1 . . . . . . . . . . . . . . 9 9 2 3 . 1 . . . . . . Spaces Dug 153 | . . 10 1 . . 1 13 6 . 32 4 12 . . 14 3 20 13 . 14 5 1 . . . . . 4 Terrain Destroyed 962 | . 15 10 39 6 . 1 107 37 4 32 5 12 . . 48 17 39 34 . 85 52 1 4 54 . . 3 357 Melee 18 | . . . 1 . . 1 . . . . 2 . . . 2 3 4 2 . . 3 . . . . . . . Projectile 166 | . 3 . 12 6 . . 32 4 4 . 3 . . . 1 . 1 11 . 15 21 1 4 19 . . 3 26 AOE 778 | . 12 10 26 . . . 75 33 . 32 . 12 . . 45 14 34 21 . 70 28 . . 35 . . . 331 Terrain Rammed . | . . . . . . . . . . . . . . . . . . . . . . . . . . . . . Walls Destroyed . | . . . . . . . . . . . . . . . . . . . . . . . . . . . . . Machines Disabled . | . . . . . . . . . . . . . . . . . . . . . . . . . . . . . Actions | -11 -10 -10 -9 -9 -8 -8 -8 -8 -8 -8 -8 -7 -7 -7 -7 -6 -6 -6 -6 -5 -5 -5 -5 -4 -4 -4 -4 -4 --------- Run | Scr Mat Min Mat Sto Mat Gar Mat Gar Mat Gar Mat Fac Was Fac Gar Fac Low Low Zio Pro Fac Upp Upp Fac Ext Cet Arc Hub Total 27373 | 13 851 653 1585 1470 74 610 707 595 567 634 672 627 863 386 1278 852 1771 984 1793 1758 2163 584 140 263 1512 187 2919 862 Wait 3359 | . 245 5 284 89 1 86 114 55 99 198 138 224 74 35 172 23 122 101 57 94 403 29 2 12 246 13 180 258 Move 21249 | 10 473 614 1096 1245 71 444 483 398 377 341 469 345 725 342 1000 737 1516 815 1714 1540 1387 524 120 182 1038 139 2648 456 Hop . | . . . . . . . . . . . . . . . . . . . . . . . . . . . . . Pick Up 191 | . 16 8 13 9 . 6 6 12 . 4 6 3 4 3 17 9 11 5 5 6 17 2 . 3 6 4 2 14 Fast Attach 189 | . 15 1 6 7 . 1 4 6 8 5 3 . 7 2 2 4 6 9 2 10 41 5 1 8 17 5 4 10 Attach 89 | . 2 . 3 . 2 . 2 6 1 2 1 3 1 . 1 3 6 2 . 6 17 3 . 1 10 2 3 12 Detach 62 | . 7 . 1 3 . 1 1 2 2 1 . 2 . . 2 . 3 2 . 3 11 1 . 3 11 1 1 4 Swap 189 | 3 7 4 15 13 . 3 13 10 4 6 15 3 5 . 13 6 15 7 6 12 19 3 . 3 . 2 . 2 Drop 248 | . 16 8 18 13 . 6 11 10 6 11 16 5 5 2 9 7 10 14 6 3 19 1 . 13 9 8 4 18 Fire 1151 | . 67 7 81 51 . 17 70 55 38 57 19 29 13 2 28 59 59 26 1 50 182 3 15 37 22 13 77 73 Melee 188 | . . . 1 . . 3 . 1 26 . 2 . 29 . 18 3 5 2 2 5 64 13 2 1 11 . . . Ram 3 | . . . . . . . . . . . . 1 . . . . . . . . . . . . 1 . . 1 Kick . | . . . . . . . . . . . . . . . . . . . . . . . . . . . . . Crush 77 | . 3 6 19 20 . 1 3 3 6 . 1 . . . . . . . . . 1 . . . . . . 14 Escape Stasis 153 | . . . . 6 . 8 . . . 9 . 8 . . 16 . . . . . . . . . 106 . . . Rewire 115 | . . . . . . 34 . . . . . . . . . . 17 . . 29 . . . . 35 . . . Trap 110 | . . . 48 14 . . . 37 . . 2 4 . . . 1 1 1 . . 2 . . . . . . . Miscellaneous . | . . . . . . . . . . . . . . . . . . . . . . . . . . . . . Route ------- -11/Scrapyard -10/Materials (discovered 2 exits: *Mat / [*Min]) -10/Mines (discovered 3 exits: *Mat x2 / [*Exi]) -9/Materials (discovered 4 exits: *Mat x2 / *Min / *Sto) -9/Storage -8/Materials -8/Garrison -8/Materials (discovered 2 exits: *Fac / Gar) -8/Garrison -8/Materials -8/Garrison (discovered 2 exits: *Mat x2) -8/Materials (discovered 3 exits: *Fac x3) -7/Factory -7/Waste -7/Factory -7/Garrison (discovered 3 exits: *Fac x3) -6/Factory (discovered 2 exits: *Low x2) -6/Lower Caves -6/Lower Caves (discovered 2 exits: *Fac / *Zio) -6/Zion -5/Proximity Caves -5/Factory (discovered 4 exits: *Fac x2 / *Upp x2) -5/Upper Caves -5/Upper Caves -4/Factory (discovered 2 exits: *Ext / Gar) -4/Extension (discovered 3 exits: *Res x2 / *Cet) -4/Cetus (discovered 2 exits: *Res / [*Arc]) -4/Archives (discovered 3 exits: *Res / *Hub x2) -4/Hub_04(d) History --------- Turn | Location | Event 1 | -11/Scrapyard | Discovered new exit (range 1) 18 | -11/Scrapyard | Entered Materials 311 | -10/Materials | Build established: Mutant 376 | -10/Materials | Discovered new exit (range 13) 711 | -10/Materials | Discovered new exit (range 10) 956 | -10/Materials | Central database locked down 1283 | -10/Materials | Entered Mines 1310 | -10/Mines | Received a Rocket Launcher from a helpful Derelict 1329 | -10/Mines | Met a Derelict bent on vengeance 1376 | -10/Mines | Deemed a non-threat by the Exiles lab entrance 1376 | -10/Mines | Discovered new exit (range 5) 1399 | -10/Mines | Discovered new exit (range 13) 1751 | -10/Mines | Identified exit to Materials 1798 | -10/Mines | Joined a pair of Derelicts in attacking an 0b10 outpost 2202 | -10/Mines | Found a hidden stash of uninstalled traps 2318 | -10/Mines | Entered Materials 2318 | -9/Materials | Evolved 2 slots: Propulsion x1, Utility x1 3059 | -9/Materials | Repaired Imp. Light Cannon 3075 | -9/Materials | Discovered new exit (range 7) 3553 | -9/Materials | Discovered new exit (range 16) 4318 | -9/Materials | First assault squad dispatched 4426 | -9/Materials | Discovered new exit (range 14) 4487 | -9/Materials | Identified exit to Mines 4487 | -9/Materials | Identified exit to Storage 4728 | -9/Materials | Entered Storage 4728 | -9/Storage | Accompanied by 1 ally 5582 | -9/Storage | Discovered new exit (range 19) 5851 | -9/Storage | Repaired Hrd. Light Armor Plating 6088 | -9/Storage | Repaired Imp. Light Cannon 6794 | -9/Storage | Assisted by bots powering up and referring to "LRC-V3" 7084 | -9/Storage | Build established: Commander-Mutant 7250 | -9/Storage | Entered Materials 7250 | -8/Materials | Accompanied by 11 allies 7250 | -8/Materials | Evolved 2 slots: Propulsion x1, Utility x1 7370 | -8/Materials | Identified exit to Garrison 7424 | -8/Materials | Entered Garrison 7424 | -8/Garrison | Accompanied by 7 allies 7532 | -8/Garrison | Found Imp. Powered Armor 7704 | -8/Garrison | Triggered checkpoint 7916 | -8/Garrison | Triggered checkpoint 8096 | -8/Garrison | Triggered checkpoint 8136 | -8/Garrison | Triggered checkpoint 8252 | -8/Garrison | Discovered new exit (range 12) 8397 | -8/Garrison | Build established: Mutant 8694 | -8/Garrison | Entered Materials 8694 | -8/Materials | Accompanied by 1 ally 8911 | -8/Materials | Destroyed 8 combat bots 9257 | -8/Materials | Discovered new exit (range 19) 9333 | -8/Materials | Repaired Imp. Medium Armor Plating 9574 | -8/Materials | Repaired Imp. Light Cannon? 10176 | -8/Materials | Identified exit to Garrison 10176 | -8/Materials | Entered Garrison 10176 | -8/Garrison | Accompanied by 1 ally 10270 | -8/Garrison | Triggered checkpoint 10368 | -8/Garrison | Discovered new exit (range 5) 10524 | -8/Garrison | Lost 3 parts (2n1u) 10640 | -8/Garrison | Triggered checkpoint 11412 | -8/Garrison | Entered Materials 11412 | -8/Materials | Accompanied by 1 ally 11858 | -8/Materials | Core integrity fell below 50% 12032 | -8/Materials | Build established: Scavenger-Mutant 12262 | -8/Materials | Identified exit to Garrison 12620 | -8/Materials | Garrison activated, responded to threat 12640 | -8/Materials | Entered Garrison 12640 | -8/Garrison | Accompanied by 2 allies 12651 | -8/Garrison | Triggered checkpoint 12857 | -8/Garrison | Triggered checkpoint 13400 | -8/Garrison | Discovered new exit (range 12) 13638 | -8/Garrison | Core integrity fell below 20% 13838 | -8/Garrison | Discovered new exit (range 8) 13857 | -8/Garrison | Entered Materials 14094 | -8/Materials | Identified exit to Factory 14305 | -8/Materials | Repaired Lgt. Treads 14338 | -8/Materials | Repaired Lgt. Treads 14799 | -8/Materials | Repaired Hyp. Gauss Cannon? 14876 | -8/Materials | Repaired Hyp. Gauss Cannon? 15202 | -8/Materials | Entered Factory 15202 | -7/Factory | Evolved 2 slots: Utility x2 15455 | -7/Factory | Build established: Mutant 16082 | -7/Factory | Manually triggered Chute Trap 16082 | -7/Factory | Sucked down chute 16082 | -7/Factory | Entered Waste 16103 | -7/Waste | Found Prototype Processor 16150 | -7/Waste | Spotted C-40 Crusher 16194 | -7/Waste | Spotted C-40 Crusher 16371 | -7/Waste | Spotted C-40 Crusher 16397 | -7/Waste | Spotted C-40 Crusher 16398 | -7/Waste | Spotted C-40 Crusher 16496 | -7/Waste | Crushed by Compactor (0 parts destroyed, 2 dropped) 16499 | -7/Waste | Crushed by Compactor (1 part destroyed, 1 dropped) 16547 | -7/Waste | Spotted C-40 Crusher 16553 | -7/Waste | Crushed by Compactor (1 part destroyed) 16564 | -7/Waste | Crushed by Compactor (1 part destroyed) 16597 | -7/Waste | Discovered new exit (range 11) 16615 | -7/Waste | Warlord forces began an assault 16629 | -7/Waste | Allies destroyed C-40 Crusher 16630 | -7/Waste | Allies destroyed C-40 Crusher 16632 | -7/Waste | Allies destroyed C-40 Crusher 16640 | -7/Waste | Allies destroyed C-40 Crusher 16672 | -7/Waste | Allies destroyed C-40 Crusher 17076 | -7/Waste | Entered Factory 17076 | -7/Factory | Accompanied by 17 allies 17467 | -7/Factory | Garrison activated, responded to threat 17522 | -7/Factory | Identified exit to Garrison 17522 | -7/Factory | Entered Garrison 17522 | -7/Garrison | Accompanied by 11 allies 17618 | -7/Garrison | Triggered checkpoint 17623 | -7/Garrison | Triggered checkpoint 17999 | -7/Garrison | Discovered new exit (range 11) 18018 | -7/Garrison | Triggered checkpoint 18119 | -7/Garrison | Found Quantum Capacitor 18125 | -7/Garrison | Found Quantum Capacitor 18297 | -7/Garrison | Discovered new exit (range 14) 18480 | -7/Garrison | Triggered checkpoint 18614 | -7/Garrison | Discovered new exit (range 13) 18710 | -7/Garrison | Triggered checkpoint 18895 | -7/Garrison | Attempted to access garrison exit controls, blocked by remote lockdown 19032 | -7/Garrison | Attempted to access garrison exit controls, blocked by remote lockdown 19190 | -7/Garrison | Entered Factory 19190 | -6/Factory | Accompanied by 1 ally 19190 | -6/Factory | Evolved 2 slots: Power x1, Utility x1 19721 | -6/Factory | Fabricated O-24 Administrator? 19732 | -6/Factory | Identified exit to Lower Caves 19890 | -6/Factory | First assault squad dispatched 20412 | -6/Factory | Spotted B-75 Beast 20483 | -6/Factory | Entered Lower Caves 20484 | -6/Lower Caves | Encountered a Warlord checkpoint 20524 | -6/Lower Caves | P-60 Hacker assimilated allied RS-CKM(S) 20532 | -6/Lower Caves | Met a Warlord Commander 20533 | -6/Lower Caves | Learned location of Warlord (-5) 20538 | -6/Lower Caves | Found Encrypted Comm Array 20542 | -6/Lower Caves | Learned Factory security intel 20904 | -6/Lower Caves | Attracted the attention of an 0b10 outpost 22272 | -6/Lower Caves | Discovered new exit (range 9) 22294 | -6/Lower Caves | Attracted the attention of an 0b10 checkpoint 24003 | -6/Lower Caves | Entered another Lower Caves area 24224 | -6/Lower Caves | Discovered new exit (range 8) 25859 | -6/Lower Caves | Discovered new exit (range 26) 26243 | -6/Lower Caves | Build established: Derelict-Mutant 26289 | -6/Lower Caves | Entered Zion 26407 | -6/Zion | System corruption cleaned by Quarantine Array 26799 | -6/Zion | Given the Hacking Drone Bay 26799 | -6/Zion | Found Prototype Device 26811 | -6/Zion | Discovered new exit (range 12) 26813 | -6/Zion | Identified Hacking Drone Bay 27337 | -6/Zion | Learned 4 Factory zone layouts 27416 | -6/Zion | Found CR-A16's Pointy Stick 27483 | -6/Zion | Learned Factory emergency access door positions 27863 | -6/Zion | Given A8's code to call for help 28045 | -6/Zion | Gained Derelict followers 29003 | -6/Zion | Build established: Mutant 30705 | -6/Zion | Entered Proximity Caves 30705 | -5/Proximity Caves | Accompanied by 3 allies 31008 | -5/Proximity Caves | Build established: Derelict-Mutant 31080 | -5/Proximity Caves | Received a Behemoth hack from an annoying Tinkerer 31657 | -5/Proximity Caves | Learned Factory stockpile data 31767 | -5/Proximity Caves | Learned Factory stockpile data 31845 | -5/Proximity Caves | Spotted B-75 Beast 31883 | -5/Proximity Caves | Destroyed B-75 Beast 31904 | -5/Proximity Caves | Lost 3 parts (1p2u) 32166 | -5/Proximity Caves | Build established: Mutant 32375 | -5/Proximity Caves | Discovered new exit (range 8) 32588 | -5/Proximity Caves | Attracted the attention of an 0b10 outpost 32699 | -5/Proximity Caves | Lost 8 parts (1p2n4u1w) 32700 | -5/Proximity Caves | Destroyed 7 combat bots 34578 | -5/Proximity Caves | Build established: Derelict-Mutant 34829 | -5/Proximity Caves | Entered Factory 34829 | -5/Factory | Accompanied by 2 allies 34829 | -5/Factory | Evolved 2 slots: Propulsion x1, Utility x1 34830 | -5/Factory | Identified exit to Upper Caves 35440 | -5/Factory | Repaired Broken Hvy. Siege Treads? 35468 | -5/Factory | P-70 Sage assimilated allied Sentinel 6a 35515 | -5/Factory | Lost 3 parts (1n2u) 35810 | -5/Factory | Build established: Scavenger-Mutant 36188 | -5/Factory | Lost 5 parts (1n1u3w) 36526 | -5/Factory | Joined by Warlord Ghost squad 36823 | -5/Factory | Discovered new exit (range 11) 36929 | -5/Factory | First assault squad dispatched 36989 | -5/Factory | Released all parts (7) 37020 | -5/Factory | Lost 8 parts (2p4n2w) 37022 | -5/Factory | Core integrity fell below 50% 37356 | -5/Factory | Local machine network offline 37453 | -5/Factory | Core integrity fell below 20% 37501 | -5/Factory | Lost 11 parts (1p5n4u1w) 37604 | -5/Factory | Discovered new exit (range 4) 37676 | -5/Factory | Entered Upper Caves 37943 | -5/Upper Caves | Learned Factory terminal intel 38227 | -5/Upper Caves | Spotted B-75 Beast 38259 | -5/Upper Caves | Revealed the true nature of CR-A16's Pointy Stick 38262 | -5/Upper Caves | Destroyed B-75 Beast 38609 | -5/Upper Caves | Discovered new exit (range 11) 38625 | -5/Upper Caves | Entered another Upper Caves area 38627 | -5/Upper Caves | Attracted the attention of an 0b10 checkpoint 38842 | -5/Upper Caves | Discovered new exit (range 9) 38856 | -5/Upper Caves | Entered Factory 38856 | -4/Factory | Evolved 2 slots: Propulsion x1, Utility x1 38858 | -4/Factory | Loaded intel: 28 terminal locations 38871 | -4/Factory | Spotted B-86 Titan 38879 | -4/Factory | Destroyed B-86 Titan 39145 | -4/Factory | First assault squad dispatched 39163 | -4/Factory | Garrison activated, responded to threat 39299 | -4/Factory | Discovered new exit (range 14) 39300 | -4/Factory | Identified exit to Garrison 39306 | -4/Factory | Entered Extension 39320 | -4/Extension | Lost 4 parts (1n3u) 39566 | -4/Extension | Rescued A7 39596 | -4/Extension | Build established: Mutant 39621 | -4/Extension | Rescued a captive Derelict 39637 | -4/Extension | Rescued a captive Derelict 39697 | -4/Extension | Rescued a captive Derelict 39698 | -4/Extension | Rescued a captive Derelict 39775 | -4/Extension | Rescued a captive Derelict 39775 | -4/Extension | Rescued a captive Derelict 39955 | -4/Extension | Repaired Hvy. Treads 40071 | -4/Extension | Rescued a captive Derelict 40072 | -4/Extension | Rescued a captive Derelict 40187 | -4/Extension | Build established: Scavenger-Mutant 40356 | -4/Extension | Spotted B-86 Titan 40367 | -4/Extension | Spotted B-86 Titan 40372 | -4/Extension | Allies destroyed B-86 Titan 40381 | -4/Extension | Destroyed B-86 Titan 40392 | -4/Extension | Found Hvy. Reflective Plating 40516 | -4/Extension | Rescued a captive Derelict 40677 | -4/Extension | Identified exit to Research 40731 | -4/Extension | Rescued a captive Derelict 40731 | -4/Extension | Rescued a captive Derelict 40761 | -4/Extension | Rescued a captive Derelict 40761 | -4/Extension | Rescued a captive Derelict 40806 | -4/Extension | First assault squad dispatched 40872 | -4/Extension | Discovered new exit (range 6) 40981 | -4/Extension | Disrupted transfer network 41015 | -4/Extension | Disrupted transfer network 41020 | -4/Extension | Entered Cetus 41020 | -4/Cetus | Accompanied by 5 allies (A7) 41025 | -4/Cetus | Acquired a Cetus Manufacturing Module code from A7 41040 | -4/Cetus | Spotted Cetus Guard 41041 | -4/Cetus | Spotted Cetus Guard 41041 | -4/Cetus | Allies destroyed Cetus Guard 41042 | -4/Cetus | Spotted Cetus Guard 41042 | -4/Cetus | Spotted Cetus Guard 41047 | -4/Cetus | Allies destroyed Cetus Guard 41060 | -4/Cetus | Allies destroyed Cetus Guard 41067 | -4/Cetus | Destroyed Cetus Guard 41095 | -4/Cetus | System corruption reached 10% 41131 | -4/Cetus | Started Cetus Manufacturing Module 41155 | -4/Cetus | Escorted A7 to Cetus Mainframe 41156 | -4/Cetus | Manufactured an Enhanced Grunt 41173 | -4/Cetus | Discovered new exit (range 15) 41181 | -4/Cetus | Manufactured an Enhanced Grunt 41204 | -4/Cetus | Spotted Cetus Guard 41204 | -4/Cetus | Spotted Cetus Guard 41206 | -4/Cetus | Manufactured an Enhanced Grunt 41211 | -4/Cetus | Spotted Cetus Guard 41211 | -4/Cetus | Spotted Cetus Guard 41214 | -4/Cetus | Allies destroyed Cetus Guard 41218 | -4/Cetus | Allies destroyed Cetus Guard 41222 | -4/Cetus | Allies destroyed A7 41225 | -4/Cetus | Allies destroyed Cetus Guard 41226 | -4/Cetus | Discovered exit to Research (range 16) 41230 | -4/Cetus | Extracted ID and sensor layout for unrecognized location from A7's data core 41231 | -4/Cetus | Manufactured an Enhanced Grunt 41238 | -4/Cetus | Allies destroyed Cetus Guard 41256 | -4/Cetus | Manufactured an Enhanced Grunt 41302 | -4/Cetus | Entered Archives 41302 | -4/Archives | Accompanied by 3 allies 41404 | -4/Archives | Discovered exit to Research (range 14) 41552 | -4/Archives | Discovered new exit (range 16) 41580 | -4/Archives | Discovered new exit (range 15) 45887 | -4/Archives | Entered Hub_04(d) 45887 | -4/Hub_04(d) | Accompanied by 3 allies 46682 | -4/Hub_04(d) | Network Hub disabled 46734 | -4/Hub_04(d) | Spotted Lightning 46736 | -4/Hub_04(d) | Spotted Lightning 46744 | -4/Hub_04(d) | Spotted Lightning 46752 | -4/Hub_04(d) | Network Hub disabled 46769 | -4/Hub_04(d) | Destroyed Lightning 46781 | -4/Hub_04(d) | Destroyed Lightning 46786 | -4/Hub_04(d) | Destroyed Lightning 46811 | -4/Hub_04(d) | Found Prototype Energy Cannon 46826 | -4/Hub_04(d) | Found Prototype Processor 46826 | -4/Hub_04(d) | Identified Exp. Targeting Computer 46843 | -4/Hub_04(d) | Found Exp. Targeting Computer 46855 | -4/Hub_04(d) | Found Prototype Device 46855 | -4/Hub_04(d) | Identified Exp. Phase Shifter 46887 | -4/Hub_04(d) | First assault squad dispatched 46921 | -4/Hub_04(d) | System corruption reached 30% 47022 | -4/Hub_04(d) | Destroyed 7 combat bots 47046 | -4/Hub_04(d) | Spotted Lightning 47047 | -4/Hub_04(d) | Spotted Lightning 47048 | -4/Hub_04(d) | Core integrity fell below 50% 47052 | -4/Hub_04(d) | Lost 18 parts (3p4n7u4w) 47052 | -4/Hub_04(d) | Spotted Lightning 47055 | -4/Hub_04(d) | Core integrity fell below 20% 47061 | -4/Hub_04(d) | Destroyed by Lightning with EMDS Last Messages --------------- 47030_ Imp. System Restoration Module purges 1% system corruption (38%). 47032_ Imp. System Restoration Module purges 1% system corruption (37%). 47036_ Imp. System Restoration Module purges 1% system corruption (36%). 47036_ ALERT: Suspicious intruders detected, dispatching Cutter reinforcements to area. 47037_ System corrupted: Heat flow error (+114). 47038_ Acquired 5 matter. 47041_ Terminal disabled. 47042_ Imp. System Restoration Module severed. 47047_ Penetrated by Slug. 47048_ Penetrated by EMDS Slug. 47050_ Exp. Targeting Computer severed. 47052_ Penetrated by EMDS Slug. 47052_ EMDS Slug penetrates Wall. 47053_ /GY4JT: ENFJ9M>,0MKEI KZ 47055_ Knocked back. 47055_ EMDS Slug penetrates Wall. 47056_ Penetrated by EMDS Slug. 47061_ EMDS Slug penetrates Wall. Map ----- +----------------------------------------------------+ | ?????????????????????????????????????????????????? | | ??????????????????????????????????????? ?????????? | | ??????????????????????????????????????? ?????????? | | ??????????????????????????????????????? ?????????? | | ??????????????????????????????????????? ????????? | | ???????????????????????????????????????? ????????? | | ??????????????????????????????????????#? ????????? | | ??????????????????????????????????????# ??####??? | | ??????????????????????????????????????# ### | | ??????????????????????????????????????? # """" | | ??????????????????????????????????????? # """" | | ???????????????????????????????????????? # """" | | ????????????????????????????????????????? + """" | | ?????????????????????????????????????????# # ?? | | ?????????????????????????????????????????# ##+#### | | ????????????????????????????+????????????# | | ???????????????????????????? #???????????# ####### | | ???????????????????????????? ###########?# #?????? | | ???????????????????????????? # #?# #?????? | | ?????????????????##########? # #?# #?????? | | ?????????????????#!! #? # #?# #?????? | | ?????????????????#!! ## # #?# #?????? | | ?????????????????#! + # #?# #?????? | | ?????????????????# # # #?# #?????? | | ?????????????????# ! # # #?# #?????? | | ?????????????????# @# # ### ###???? | | ?????????????????# c# + # ##### | | ?????????????????# c # # | | ?????????????????# ! # # + T | | ?????????????????########## # # | | ?????????????????????# # # ####+ | | ?????????????????????# # ####### | | ?????????????????????# ### ## #?????# " " | | ?????????????????????# #?# ## #?????# " " | | ???????????????# ????# #?# #######+#######??# " " | | ???????????????# " ??# ###+#?#####% #??# | | ?????##????????# #% # ??? # " " " #??# " " | | ????? ??????# ! + / ????? #%" " " #??# " " | | ????? ????####### #?????? # " " " #??# " " | | ?????? " ???????## ##???###+## #??# | | ??????? """ ###### H ##### ! ##+############# | | ????????"""" " T" #????? | | ????????""""" + #????? | | ?????????""????###### % ##### #######+#+#????? | | ????????????????????"#+#"#???######??????????????? | | ??????????????????? ??????????????????????? | | ?????????????????? ????????????????????? | | ????????????????# ??????????????????? | | ????????????????# ?????????????????? | | ????????????????# ????????????????? | +----------------------------------------------------+ Best States ------------- Heat Dissipation 90 Coolant Potential 200 Energy Generation 46 Energy Capacity 1315 Matter Stores 300 Matter Capacity 300 Sight Range 20 Robot Scan Range 18 Terrain Scan Density 10 Jamming Range 14 Power Amplification 30 Armor Coverage 2400 Resistance: KI 25 Resistance: TH 25 Propulsion Shielding 33 Phase Shifting 20 Evasion (%) 60 Targeting Accuracy 24 Target Analysis 6 Core Analysis 6 Armor Integrity Analysis 30 Recoil Reduction 6 Particle Charging 25 Kinecelleration 40 Offensive Hacking 10 Defensive Hacking 10 Authchip Count 2 Item Schematics ----------------- KE Penetrator | -8/Materials | Scanalyzed Adv. Cooling System | -8/Materials | Scanalyzed Adv. Targeting Computer | -8/Materials | Scanalyzed Hpw. Shock Rifle | -6/Zion | Archive Hvy. Phase Cannon | -6/Zion | Archive Mass Driver | -6/Zion | Archive Cloaking Device | -6/Zion | Archive Imp. Thermal Shield | -6/Zion | Archive Coil Gun | -6/Zion | Archive Mak. Sensor Array | -6/Zion | Archive Recoil Nullifier | -6/Zion | Archive Lrn. Missile Launcher | -6/Zion | Archive Plasma Rifle | -6/Zion | Archive Hyp. Gauss Cannon | -6/Zion | Archive Fusion Compressor | -6/Zion | Archive Lrn. Proton Cannon | -6/Zion | Archive Imp. Medium Treads | -6/Zion | Archive Dispersion Rifle | -6/Zion | Archive Lrn. Phase Cannon | -6/Zion | Archive Barrage Gun | -6/Zion | Free Slug Cannon | -6/Zion | Free Bore Cannon | -6/Zion | Free Flamer | -6/Zion | Free Ripper | -6/Zion | Free Robot Schematics ------------------ T-07 Excavator | -6/Zion | Archive X-67 Chaingunner | -6/Zion | Archive E-15 Imp | -6/Zion | Archive Fabricated ------------ O-24 Administrator | x1 | -6/Factory | Preloaded Alien Tech Used ----------------- None Achievements -------------- None Challenges ------------ None Game ------ Seed GatlingHypercooledLaser Manual? 0 Play Time 03:23:52 Cumulative 1248.6 hours Start 2022.10.28 @ 03:29:44 End 2022.10.29 @ 11:23:23 Sessions 5 Manual Loads 0 Difficulty Rogue Special Mode None Game No. 864 Rogue 860 Adventurer 4 Explorer 0 Win Type - Total 136 Types 102/10/8/5/2/1/1/4/3 Lore% 95 Gallery% 98 Achievement% 98 Wizard Run 0 Options --------- ASCII 0 Keyboard 1 Movement Vi Keybinds 0 Fullscreen 0 Font 20/X11 Map View 76x50 Tactical HUD 1 Map Filters NONE Filters NONE Steam 1 RUN: 587b49c2-3b57-4f2f-b166-12b6ef8a8305